lending/lending_fUSD_20240111
["ID","MTS","AMOUNT","RATE_DAILY","PERIOD"]
[311269571,1705007449121,-314.07,0.00038766,2]
[311269572,1705007449130,-314.07,0.00038766,2]
[311269573,1705007449139,-444.54148582,0.00038767,2]
[311269574,1705007449150,-975.0,0.000388,16]
[311269575,1705007449159,-184.87968352,0.000388,24]
[311269576,1705007449170,-150.0,0.000388,13]
[311269577,1705007449179,-9083.03712058,0.000389,7]
[311269578,1705007449188,-4038.26,0.000389,7]
[311269579,1705007449197,-184.100401,0.00038901,7]
[311269580,1705007449206,-151.0,0.00038901,7]
[311269581,1705007449215,-152.457902,0.00038901,7]
[311269582,1705007449225,-152.457902,0.00038901,7]
[311269583,1705007449234,-250.0,0.00038901,2]
[311269584,1705007449244,-214.0,0.00038901,2]
[311269585,1705007449254,-150.0,0.00038901,2]
[311269586,1705007449263,-150.0,0.00038901,2]
[311269587,1705007449272,-150.425,0.00038901,2]
[311269588,1705007449282,-150.208,0.00038901,2]
[311269589,1705007449291,-150.0,0.00038901,2]
[311269590,1705007449301,-59156.34719263,0.00038948,2]
[311269591,1705007449310,-281.73212903,0.0003898,2]
[311269592,1705007449319,-200.0,0.00038987,8]
[311269593,1705007449328,-2345.0,0.0003899,3]
[311269594,1705007449338,-3000.0,0.00038999,2]
[311269595,1705007449347,-3000.0,0.00038999,2]
[311269596,1705007449357,-3000.0,0.00038999,2]
[311269597,1705007449366,-3000.0,0.00038999,2]
[311269598,1705007449375,-3000.0,0.00038999,2]
[311269599,1705007449384,-380.3,0.00038999,2]
[311269600,1705007449535,-150.0,0.00038999,2]
[311269601,1705007449544,-150.0,0.00038999,2]
[311269602,1705007449554,-100000.0,0.00039,9]
[311269603,1705007449564,-212.8232535,0.00039,7]
[311269604,1705007449574,-1427.43973993,0.00039,2]
[311269605,1705007449583,-282.68132749,0.00039,4]
[311269606,1705007449592,-167782.28883337,0.00039,2]
[311269607,1705007449602,-271750.65733205,0.00039,2]
[311269608,1705007449611,-1000.0,0.00039,9]
[311269609,1705007449620,-1000.0,0.00039,9]
[311269610,1705007449629,-1000.0,0.00039,9]
[311269611,1705007449640,-1000.0,0.00039,9]
[311269612,1705007449651,-1047.0,0.00039,9]
[311269613,1705007449661,-600.0,0.00039,40]
[311269614,1705007449673,-370.16516551,0.00039,120]
[311269615,1705007449682,-140880.1629,0.00039,2]
[311269616,1705007449693,-308.18292112,0.00039,5]
[311269617,1705007449703,-277475.33007009,0.00039,4]
[311269618,1705007449714,-260.872894,0.00039,7]
[311269619,1705007449724,-152.457902,0.00039,7]
[311269620,1705007449734,-152.457902,0.00039,7]
[311269621,1705007449745,-151.0,0.00039,7]
[311269622,1705007449755,-151.0,0.00039,7]
[311269623,1705007449765,-856.517788,0.00039,7]
[311269624,1705007449775,-856.517788,0.00039,7]
[311269625,1705007449785,-900.0,0.00039,3]
[311269626,1705007449794,-227.425634,0.00039,7]
[311269627,1705007449804,-151.0,0.00039,7]
[311269628,1705007449813,-169.918984,0.00039,7]
[311269629,1705007449823,-169.918984,0.00039,7]
[311269630,1705007449832,-982.374631,0.00039,7]
[311269631,1705007449842,-982.374631,0.00039,7]
[311269632,1705007449853,-151.0,0.00039,7]
[311269633,1705007449862,-151.0,0.00039,7]
[311269634,1705007449871,-270.739334,0.00039,7]
[311269635,1705007449881,-270.739334,0.00039,7]
[311269636,1705007449890,-494.881223,0.00039,7]
[311269637,1705007449900,-494.881223,0.00039,7]
[311269638,1705007449909,-1410.623809,0.00039,7]
[311269639,1705007449919,-1410.623809,0.00039,7]
[311269640,1705007449928,-1410.623809,0.00039,7]
[311269641,1705007449937,-1410.623816,0.00039,7]
[311269642,1705007449947,-2808.282597,0.00039,7]
[311269643,1705007449956,-2808.282597,0.00039,7]
[311269644,1705007449966,-2808.282597,0.00039,7]
[311269645,1705007449975,-2808.282601,0.00039,7]
[311269646,1705007449985,-151.0,0.00039,7]
[311269647,1705007449994,-151.0,0.00039,7]
[311269648,1705007450006,-151.0,0.00039,7]
[311269649,1705007450016,-151.0,0.00039,7]
[311269650,1705007450026,-151.0,0.00039,7]
[311269651,1705007450035,-202.0,0.00039016,12]
[311269652,1705007450045,-185.97843988,0.00039029,7]
[311269653,1705007450055,-1638.28143364,0.00039037,12]
[311269654,1705007450065,-153.0,0.000391,7]
[311269655,1705007450076,-27244.71,0.000391,7]
[311269656,1705007450086,-16124.74,0.000391,7]
[311269657,1705007450096,-151.0,0.000391,7]
[311269658,1705007450106,-151.0,0.000391,7]
[311269659,1705007450116,-856.517788,0.000391,7]
[311269660,1705007450126,-856.517785,0.000391,7]
[311269661,1705007450135,-1000.0,0.000391,2]
[311269662,1705007450145,-263.901843,0.000391,7]
[311269663,1705007450155,-169.918984,0.000391,7]
[311269664,1705007450165,-169.918984,0.000391,7]
[311269665,1705007450174,-982.374631,0.000391,7]
[311269666,1705007450185,-982.374631,0.000391,7]
[311269667,1705007450194,-151.0,0.000391,7]
[311269668,1705007450204,-151.0,0.000391,7]
[311269669,1705007450213,-270.739334,0.000391,7]
[311269670,1705007450223,-270.739334,0.000391,7]
[311269671,1705007450233,-494.881223,0.000391,7]
[311269672,1705007450242,-494.881223,0.000391,7]
[311269673,1705007450251,-157.49782164,0.00039104,7]
[311269674,1705007450261,-428.5,0.0003915,2]
[311269675,1705007450271,-150.0,0.00039169,2]
[311269676,1705007450280,-153.84,0.00039169,2]
[311269677,1705007450290,-150.0,0.00039169,2]
[311269678,1705007450299,-2414.0,0.00039169,2]
[311269679,1705007450309,-451.892,0.00039169,2]
[311269680,1705007450318,-1355.0,0.00039169,2]
[311269681,1705007450328,-944.0,0.00039169,2]
[311269682,1705007450342,-834.0,0.00039169,2]
[311269683,1705007450352,-3030.0,0.00039169,2]
[311269684,1705007450361,-1851.0,0.00039169,2]
[311269685,1705007450371,-1284.31660825,0.000392,2]
[311269686,1705007450381,-155.32,0.00039252,2]
[311269687,1705007450391,-609.35,0.0003926,2]
[311269688,1705007450401,-153.84,0.00039269,2]
[311269689,1705007450411,-1000.0,0.000393,2]
[311269690,1705007450420,-185.97843988,0.00039339,7]
[311269691,1705007450430,-1638.28143364,0.00039365,13]
[311269692,1705007450440,-185.97843988,0.00039391,7]
[311269693,1705007450450,-3423.2369444,0.000394,4]
[311269694,1705007450460,-4038.26,0.000394,7]
[311269695,1705007450471,-152.457902,0.000394,7]
[311269696,1705007450481,-152.457902,0.000394,7]
[311269697,1705007450490,-157.54,0.000394,3]
[311269698,1705007450500,-157.54,0.000394,3]
[311269699,1705007450509,-157.54,0.000394,3]
[311269700,1705007450518,-157.54,0.000394,3]
[311269701,1705007450528,-157.54,0.000394,3]
[311269702,1705007450537,-157.54,0.000394,3]
[311269703,1705007450547,-1819.02,0.000394,3]
[311269704,1705007450556,-1819.02,0.000394,3]
[311269705,1705007450566,-1819.02,0.000394,3]
[311269706,1705007450576,-1819.02,0.000394,3]
[311269707,1705007450585,-1819.02,0.000394,3]
[311269708,1705007450595,-1819.02,0.000394,3]
[311269709,1705007450604,-1819.02,0.000394,3]
[311269710,1705007450614,-1819.02,0.000394,3]
[311269711,1705007450623,-1819.02,0.000394,3]
[311269712,1705007450632,-1819.02,0.000394,3]
[311269713,1705007450643,-1819.02,0.000394,3]
[311269714,1705007450652,-1819.02,0.000394,3]
[311269715,1705007450662,-1819.02,0.000394,3]
[311269716,1705007450672,-1819.02,0.000394,3]
[311269717,1705007450682,-1819.02,0.000394,3]
[311269718,1705007450691,-1819.02,0.000394,3]
[311269719,1705007450701,-1819.02,0.000394,3]
[311269720,1705007450711,-1819.02,0.000394,3]
[311269721,1705007450722,-1819.02,0.000394,3]
[311269722,1705007450731,-1819.02,0.000394,3]
[311269723,1705007450741,-218.68581734,0.00039471,7]
[311269724,1705007450751,-10000.0,0.00039491,3]
[311269725,1705007450760,-3229.97399746,0.000395,2]
[311269726,1705007450770,-4548.95757275,0.000395,4]
[311269727,1705007450779,-1320.0,0.000395,60]
[311269728,1705007450789,-1000.0,0.0003954,2]
[311269729,1705007450799,-164.61,0.0003954,2]
[311269730,1705007450809,-176.64,0.00039556,2]
[311269731,1705007450819,-500.0,0.00039562,7]
[311269732,1705007450829,-2040.551452,0.00039582,2]
[311269733,1705007450838,-172.043996,0.00039582,2]
[311269734,1705007450848,-10378.914948,0.00039582,2]
[311269735,1705007450857,-2014.977719,0.00039582,2]
[311269736,1705007450867,-685.588463,0.00039582,2]
[311269737,1705007450876,-168.255559,0.00039582,2]
[311269738,1705007450886,-168.251257,0.00039582,2]
[311269739,1705007450895,-1935.291063,0.00039582,2]
[311269740,1705007450904,-181.530769,0.00039582,2]
[311269741,1705007450914,-154.100341,0.00039582,2]
[311269742,1705007450923,-171.397116,0.00039582,2]
[311269743,1705007450933,-172.043996,0.00039582,2]
[311269744,1705007450943,-387.058212,0.00039582,2]
[311269745,1705007450952,-181.530769,0.00039582,2]
[311269746,1705007450962,-27244.71,0.000396,7]
[311269747,1705007450973,-16124.74,0.000396,7]
[311269748,1705007450983,-156.18722055,0.00039615,7]
[311269749,1705007450992,-581.42,0.0003963,2]
[311269750,1705007451002,-1638.28143364,0.00039692,13]
[311269751,1705007451011,-202.0,0.00039693,14]
[311269752,1705007451020,-1000.0,0.000397,2]
[311269753,1705007451029,-887.0,0.000397,2]
[311269754,1705007451039,-8000.0,0.000397,2]
[311269755,1705007451048,-151.08653758,0.00039703,5]
[311269756,1705007451058,-185.97843988,0.00039725,7]
[311269757,1705007451067,-157.49782164,0.0003975,7]
[311269758,1705007451077,-428.28052565,0.000398,4]
[311269759,1705007451086,-2000.0,0.000398,2]
[311269760,1705007451095,-150.0,0.000398,14]
[311269761,1705007451104,-160.50739785,0.00039828,7]
[311269762,1705007451113,-150.0,0.00039899,2]
[311269763,1705007451122,-150.0,0.00039899,2]
[311269764,1705007451132,-300.00528678,0.000399,4]
[311269765,1705007451141,-124061.18273558,0.000399,7]
[311269766,1705007451568,-50404.97537629,0.000399,7]
[311269767,1705007451578,-99965.75618005,0.000399,2]
[311269768,1705007451587,-44247.20650528,0.000399,7]
[311269769,1705007451597,-419.99230614,0.000399,120]
[311269770,1705007451607,-4038.26,0.000399,7]
[311269771,1705007451771,-152.457902,0.000399,7]
[311269772,1705007451781,-152.457912,0.000399,7]
[311269773,1705007451790,-169.918984,0.000399,7]
[311269774,1705007451799,-169.918976,0.000399,7]
[311269775,1705007451809,-982.374631,0.000399,7]
[311269776,1705007451819,-982.374638,0.000399,7]
[311269777,1705007451829,-151.0,0.000399,7]
[311269778,1705007451839,-151.0,0.000399,7]
[311269779,1705007451848,-270.739334,0.000399,7]
[311269780,1705007451858,-270.739337,0.000399,7]
[311269781,1705007451867,-494.881223,0.000399,7]
[311269782,1705007451877,-494.881215,0.000399,7]
[311269783,1705007451887,-1014.67766403,0.00039944,15]
[311269784,1705007451896,-200.0,0.00039945,15]
[311269785,1705007451905,-1661.4281134,0.00039948,15]
[311269786,1705007451914,-15758.46076016,0.00039948,15]
[311269787,1705007451923,-294.17802863,0.0003995,15]
[311269788,1705007451933,-18696.75382473,0.00039951,15]
[311269789,1705007451942,-1014.67766403,0.00039952,15]
[311269790,1705007451951,-15758.46076016,0.00039955,15]
[311269791,1705007451961,-15758.46076016,0.00039955,15]
[311269792,1705007451973,-500.0,0.00039955,7]
[311269793,1705007451983,-200.0,0.00039956,10]
[311269794,1705007451992,-514.81155017,0.00039957,10]
[311269795,1705007452002,-200.0,0.00039957,10]
[311269796,1705007452011,-329.32629277,0.00039957,10]
[311269797,1705007452021,-27577.30633036,0.00039957,10]
[311269798,1705007452030,-18696.75382473,0.00039958,15]
[311269799,1705007452040,-514.81155017,0.00039959,10]
[311269800,1705007452049,-2907.49919853,0.00039959,10]
[311269801,1705007452059,-1014.67766403,0.00039959,15]
[311269802,1705007452068,-329.32629277,0.0003996,10]
[311269803,1705007452078,-17663.2203335,0.0003996,10]
[311269804,1705007452090,-15056.09885986,0.0003996,10]
[311269805,1705007452100,-32719.31919336,0.00039961,10]
[311269806,1705007452110,-2907.49919853,0.00039961,10]
[311269807,1705007452119,-200.0,0.00039961,10]
[311269808,1705007452129,-27577.30633036,0.00039962,10]
[311269809,1705007452138,-1775.68591213,0.00039963,10]
[311269810,1705007452147,-514.81155017,0.00039965,10]
[311269811,1705007452157,-200.0,0.00039965,15]
[311269812,1705007452166,-1661.4281134,0.00039967,15]
[311269813,1705007452175,-1775.68591213,0.00039968,10]
[311269814,1705007452185,-200.0,0.00039971,10]
[311269815,1705007452194,-32719.31919336,0.00039972,10]
[311269816,1705007452203,-294.17802863,0.00039973,15]
[311269817,1705007452213,-294.17802863,0.00039973,15]
[311269818,1705007452225,-2907.49919853,0.00039974,10]
[311269819,1705007452235,-1661.4281134,0.00039975,15]
[311269820,1705007452244,-1775.68591213,0.00039975,10]
[311269821,1705007452254,-27577.30633036,0.00039976,10]
[311269822,1705007452263,-27577.30633036,0.00039976,10]
[311269823,1705007452272,-18696.75382473,0.00039977,15]
[311269824,1705007452282,-329.32629277,0.0003998,10]
[311269825,1705007452291,-579.42688866,0.0003998,3]
[311269826,1705007452301,-1775.68591213,0.0003998,10]
[311269827,1705007452310,-689.17931968,0.0003998,3]
[311269828,1705007452319,-18380.59930262,0.0003998,2]
[311269829,1705007452328,-206.09753177,0.0003998,3]
[311269830,1705007452338,-378.90246823,0.0003998,3]
[311269831,1705007452349,-329.32629277,0.00039982,10]
[311269832,1705007452358,-514.81155017,0.00039985,10]
[311269833,1705007452367,-2907.49919853,0.00039985,10]
[311269834,1705007452377,-32719.31919336,0.00039986,10]
[311269835,1705007452387,-200.0,0.00039987,9]
[311269836,1705007452397,-204.30056541,0.0003999,7]
[311269837,1705007452406,-200.0,0.0003999,7]
[311269838,1705007452416,-2365.0,0.0003999,3]
[311269839,1705007452426,-150.0,0.00039999,2]
[311269840,1705007452435,-150.0,0.00039999,2]
[311269841,1705007452446,-100000.0,0.0004,10]
[311269842,1705007452455,-155.0,0.0004,2]
[311269843,1705007452465,-22008.0721351,0.0004,4]
[311269844,1705007452477,-149655.13043685,0.0004,15]
[311269845,1705007453027,-527.14700434,0.00032876,14]
[311269846,1705007453111,-2350.72791782,0.00032876,14]
[311269847,1705007453120,-1215.40172033,0.000376,2]
[311269848,1705007453130,-153.0,0.00038,2]
[311269849,1705007453139,-1215.40172027,0.00038013,2]
[311269850,1705007453149,-6508.18254861,0.0004,15]
[311269851,1705007453158,-956.60549549,0.0004,2]
[311269852,1705007453167,-18605.49972168,0.0004,2]
[311269853,1705007453176,-25281.45188816,0.0004,2]
[311269854,1705007453185,-156.40225506,0.0004,4]
[311269855,1705007453196,-12986.529993,0.0004,2]
[311269856,1705007453205,-601.9764318,0.0004,4]
[311269857,1705007453476,-361.88,0.00034122,2]
[311269858,1705007453488,-474.17972,0.00034122,2]
[311269859,1705007453499,-5368.03146139,0.00034122,2]
[311269860,1705007453511,-427.10354647,0.00034122,2]
[311269861,1705007453522,-835.04991627,0.00034122,2]
[311269862,1705007453538,-2146.50535587,0.00034122,2]
[311269863,1705007453547,-939.68,0.00036711,2]
[311269864,1705007453557,-200.659482,0.00037534,14]
[311269865,1705007453566,-1297.454311,0.000378,2]
[311269866,1705007453575,-768.33185124,0.00038425,2]
[311269867,1705007453587,-447.06986903,0.00038425,2]
[311269868,1705007453596,-692.02328597,0.000388,2]
[311269869,1705007453850,-4694.43539612,0.00032875,4]
[311269870,1705007453861,-12677.13,0.00034122,2]
[311269871,1705007453870,-159.03,0.00037699,2]
[311269872,1705007453880,-159.03,0.00037699,2]
[311269873,1705007453889,-159.03,0.00037699,2]
[311269874,1705007453899,-159.03,0.00037699,2]
[311269875,1705007453908,-159.03,0.00037699,2]
[311269876,1705007453918,-200.659482,0.0003863,14]
[311269877,1705007453927,-605.43102503,0.000388,2]
[311269878,1705007453937,-1215.40172027,0.00038838,2]
[311269879,1705007453946,-1215.40172027,0.0003925,3]
[311269880,1705007453955,-1215.40172027,0.00039663,5]
[311269881,1705007453964,-1297.454311,0.000398,3]
[311269882,1705007453975,-961.25565585,0.0004,4]
[311269883,1705007454203,-3728.75,0.0004,4]
[311269884,1705007454215,-4587.7,0.0004,4]
[311269885,1705007454241,-12954.01332,0.0004,4]
[311269898,1705007872870,-5436.16739237,0.00024999,2]
[311269899,1705007872892,-550.0,0.00025,3]
[311269900,1705007872914,-1581.98629386,0.00026999,2]
[311269901,1705007872934,-600.0,0.00027,3]
[311269902,1705007872955,-650.0,0.00029,3]
[311269903,1705007872975,-716.32220065,0.0003,4]
[311269904,1705007872995,-3887.52411312,0.0003,2]
[311270139,1705008443106,-363.56577485,0.00024994,2]
[311270140,1705008443127,-254.88896226,0.00024995,2]
[311270205,1705008631457,-311.82193235,0.00024999,2]
[311270206,1705008631467,-550.0,0.00025,3]
[311270207,1705008631477,-245.46348137,0.000269,2]
[311270208,1705008631492,-1014.63361863,0.000269,2]
[311270209,1705008631501,-600.0,0.00027,3]
[311270210,1705008631510,-643.11,0.00027424,2]
[311270211,1705008631523,-150.0,0.00028289,2]
[311270212,1705008631531,-145.25376567,0.000284,2]
[311270213,1705008631543,-65.05585076,0.000284,2]
[311270214,1705008631552,-322.3974793,0.000285,2]
[311270215,1705008631562,-12.63148291,0.00028552,2]
[311270216,1705008631580,-237.36851709,0.00028552,2]
[311270217,1705008631590,-43.00958091,0.00028552,2]
[311270218,1705008631604,-206.99041909,0.00028552,2]
[311270219,1705008631613,-48.9851752,0.00028578,2]
[311270220,1705008631624,-1593.011,0.00028578,2]
[311270221,1705008631647,-530.26541467,0.00028578,2]
[311270222,1705008631904,-770.61,0.00028578,2]
[311270223,1705008631966,-724.46528042,0.00028578,2]
[311270224,1705008631978,-323.26186872,0.00028578,2]
[311270263,1705008637408,-738.54219566,0.000282,2]
[311270268,1705008637528,-2555.82757494,0.000282,2]
[311270269,1705008637538,-2000.0,0.00028414,2]
[311270270,1705008637549,-29669.459327,0.00028578,2]
[311270271,1705008637559,-24312.16676934,0.00028587,2]
[311270272,1705008637568,-468.96901353,0.00028588,2]
[311270273,1705008637578,-150.0,0.00028588,2]
[311270274,1705008637587,-42943.64418819,0.00028589,2]
[311270275,1705008637597,-23900.0,0.0002859,2]
[311270276,1705008637606,-541.72,0.00028682,2]
[311270277,1705008637615,-210.30961633,0.00028742,2]
[311270278,1705008637624,-151.86,0.00028745,2]
[311270279,1705008637633,-151.86,0.00028829,2]
[311270280,1705008637642,-151.86,0.00028912,2]
[311270281,1705008637652,-151.86,0.00028995,2]
[311270282,1705008637661,-172.21,0.00028998,2]
[311270283,1705008637670,-650.0,0.00029,3]
[311270284,1705008637680,-151.86,0.00029078,2]
[311270285,1705008637689,-210.30961633,0.00029084,2]
[311270286,1705008637699,-151.86,0.00029161,2]
[311270287,1705008637708,-172.21,0.00029165,2]
[311270288,1705008637717,-151.86,0.00029245,2]
[311270289,1705008637727,-699.44,0.00029291,2]
[311270290,1705008637736,-151.86,0.00029328,2]
[311270291,1705008637749,-172.21,0.00029333,2]
[311270292,1705008637759,-171.85542172,0.00029348,2]
[311270293,1705008637768,-9011.57,0.0002935,2]
[311270294,1705008637778,-150.0,0.00029371,2]
[311270295,1705008637787,-151.86,0.00029411,2]
[311270296,1705008637796,-210.30961633,0.00029426,2]
[311270297,1705008637806,-151.86,0.00029494,2]
[311270298,1705008637816,-172.21,0.000295,2]
[311270299,1705008637825,-151.86,0.00029577,2]
[311270300,1705008637835,-541.72,0.0002966,2]
[311270301,1705008637844,-151.86,0.00029661,2]
[311270302,1705008637854,-172.21,0.00029668,2]
[311270303,1705008637863,-643.11,0.00029687,2]
[311270304,1705008637872,-151.86,0.00029744,2]
[311270306,1705008637882,-210.30961633,0.00029768,2]
[311270308,1705008637891,-151.86,0.00029827,2]
[311270310,1705008637900,-172.21,0.00029835,2]
[311270312,1705008637909,-559.0515,0.000299,2]
[311270314,1705008637922,-1000.0,0.000299,2]
[311270316,1705008637931,-164.82885682,0.000299,4]
[311270318,1705008637940,-3295.8524,0.000299,2]
[311270320,1705008637949,-346.46987124,0.000299,2]
[311270322,1705008637958,-151.86,0.0002991,2]
[311270324,1705008637967,-615.66,0.00029914,2]
[311270326,1705008637977,-418.68518496,0.0002998,2]
[311270328,1705008637986,-151.86,0.00029993,2]
[311270330,1705008637998,-568.23537423,0.00029995,2]
[311270333,1705008638008,-235.48356349,0.00029998,2]
[311270335,1705008638018,-243.26769982,0.00029998,2]
[311270338,1705008638028,-290.95665765,0.00029998,2]
[311270340,1705008638037,-536.80126056,0.00029998,4]
[311270344,1705008638046,-248.2795636,0.00029998,2]
[311270346,1705008638055,-256.57681672,0.00029998,2]
[311270349,1705008638065,-939.37733012,0.00029998,2]
[311270352,1705008638075,-1578.21583504,0.00029998,2]
[311270355,1705008638085,-2189.12236656,0.00029998,2]
[311270358,1705008638094,-161.78271425,0.00029999,2]
[311270361,1705008638104,-753.3957235,0.00029999,2]
[311270364,1705008638113,-152.26,0.00029999,2]
[311270366,1705008638122,-152.26,0.00029999,2]
[311270369,1705008638133,-152.26,0.00029999,2]
[311270372,1705008638145,-152.26,0.00029999,2]
[311270375,1705008638154,-271.53,0.00029999,2]
[311270377,1705008638163,-271.53,0.00029999,2]
[311270380,1705008638174,-9622.66491322,0.0003,2]
[311270383,1705008638183,-2734.96538905,0.0003,2]
[311270387,1705008638192,-155.0,0.0003,2]
[311270390,1705008638202,-351.05725836,0.0003,2]
[311270393,1705008638211,-200.0,0.0003,2]
[311270395,1705008638221,-684.92408583,0.0003,4]
[311270398,1705008638230,-682.58768049,0.0003,4]
[311270400,1705008638239,-581.6237216,0.0003,2]
[311270403,1705008638250,-72797.28205453,0.0003,4]
[311270404,1705008638260,-308366.93329374,0.0003,4]
[311270407,1705008638269,-219.62752548,0.0003,4]
[311270409,1705008638278,-172.21,0.00030003,2]
[311270412,1705008638288,-151.86,0.00030077,2]
[311270415,1705008638297,-210.30961633,0.00030111,2]
[311270417,1705008638306,-10000.0,0.00030137,2]
[311270419,1705008638316,-151.86,0.0003016,2]
[311270421,1705008638327,-172.21,0.00030171,2]
[311270424,1705008638337,-151.86,0.00030243,2]
[311270425,1705008638346,-172.21,0.00030338,2]
[311270427,1705008638355,-210.30961633,0.00030453,2]
[311270429,1705008638364,-172.21,0.00030506,2]
[311270431,1705008638372,-33711.53322621,0.00030542,4]
[311270433,1705008638381,-5782.30625905,0.00030542,4]
[311270435,1705008638390,-164.62,0.00030543,2]
[311270437,1705008638400,-541.72,0.00030639,2]
[311270439,1705008638410,-499.99,0.00030794,2]
[311270441,1705008638419,-732.66,0.00030794,2]
[311270443,1705008638428,-721.11,0.00030794,2]
[311270445,1705008638437,-724.81,0.00030794,2]
[311270447,1705008638446,-210.30961633,0.00030795,2]
[311270449,1705008638455,-717.33,0.00030797,2]
[311270451,1705008638464,-722.02,0.00030797,2]
[311270454,1705008638474,-746.06890798,0.00030798,4]
[311270456,1705008638483,-724.15,0.00030798,2]
[311270458,1705008638494,-2941.0,0.000308,2]
[311270460,1705008638503,-263.49556138,0.0003089,2]
[311270462,1705008638512,-25702.0,0.000309,2]
[311270464,1705008638521,-700.0,0.00031,3]
[311270466,1705008638529,-176.05,0.00031,2]
[311270467,1705008638538,-210.30961633,0.00031137,2]
[311270470,1705008638547,-202.0,0.00031277,2]
[311270471,1705008638556,-202.0,0.00031277,2]
[311270473,1705008638565,-202.0,0.00031277,2]
[311270475,1705008638574,-210.0,0.00031446,3]
[311270477,1705008638584,-210.30961633,0.00031479,2]
[311270480,1705008638594,-191.62458152,0.00031548,2]
[311270481,1705008638603,-541.72,0.00031617,2]
[311270483,1705008638612,-165.97418147,0.00031721,4]
[311270485,1705008638621,-148005.252885,0.000318,2]
[311270488,1705008638630,-210.30961633,0.00031821,2]
[311270489,1705008638639,-1000.0,0.000319,2]
[311270491,1705008638648,-202.0,0.00031945,3]
[311270494,1705008638658,-643.11,0.00031951,2]
[311270496,1705008638667,-189.82959311,0.00031983,3]
[311270498,1705008638676,-197.51049336,0.00031987,2]
[311270500,1705008638685,-271.53,0.00031989,2]
[311270502,1705008638694,-271.53,0.00031989,2]
[311270504,1705008638703,-88803.151731,0.0003199,2]
[311270506,1705008638713,-3927.46658202,0.00031998,4]
[311270508,1705008638722,-2123.05852579,0.00031999,2]
[311270510,1705008638731,-155.0,0.00032,2]
[311270512,1705008638739,-172.152924,0.00032,2]
[311270514,1705008638750,-173559.82731972,0.00032,2]
[311270515,1705008638760,-165.06,0.00032083,2]
[311270518,1705008638769,-210.30961633,0.00032163,2]
[311270520,1705008638778,-1125.83,0.00032267,2]
[311270522,1705008638787,-188.22,0.00032338,2]
[311270524,1705008638797,-210.30961633,0.00032505,2]
[311270526,1705008638806,-1000.0,0.00032546,2]
[311270528,1705008638816,-541.72,0.00032595,2]
[311270530,1705008638825,-202.0,0.00032613,4]
[311270532,1705008638834,-210.30961633,0.00032847,2]
[311270534,1705008638843,-1058.57,0.00032877,15]
[311270536,1705008638852,-750.0,0.00033,3]
[311270538,1705008638861,-210.30961633,0.00033189,2]
[311270540,1705008638870,-153.84,0.00033265,2]
[311270542,1705008638879,-202.0,0.00033281,6]
[311270544,1705008638888,-165.97418147,0.0003331,6]
[311270546,1705008638897,-210.30961633,0.00033532,2]
[311270548,1705008638906,-541.72,0.00033574,2]
[311270550,1705008638915,-210.30961633,0.00033874,2]
[311270552,1705008638926,-202.0,0.00033949,7]
[311270553,1705008638935,-201.6432844,0.00034,2]
[311270556,1705008638944,-1000.0,0.00034,4]
[311270558,1705008638954,-155.0,0.00034,2]
[311270560,1705008638963,-802.19636617,0.00034,4]
[311270562,1705008638973,-9867.016859,0.00034128,5]
[311270564,1705008638982,-643.11,0.00034215,2]